fUSD/lending_fUSD_20260322
["ID","MTS","AMOUNT","RATE_DAILY","PERIOD"]
[408705182,1774158638134,-500.0,0.00013275,2]
[408705183,1774158638143,-500.0,0.00013275,2]
[408705184,1774158638152,-500.0,0.00013275,2]
[408705185,1774158638162,-500.0,0.00013275,2]
[408705186,1774158638171,-500.0,0.00013275,2]
[408705187,1774158638182,-500.0,0.00013275,2]
[408705188,1774158638191,-500.0,0.00013275,2]
[408705189,1774158638200,-500.0,0.00013275,2]
[408705190,1774158638210,-500.0,0.00013275,2]
[408705191,1774158638219,-500.0,0.00013275,2]
[408705192,1774158638228,-500.0,0.00013275,2]
[408705193,1774158638238,-356.41184842,0.00013275,2]
[408705194,1774158638253,-143.58815158,0.00013275,2]
[408705195,1774158638263,-500.0,0.00013275,2]
[408705196,1774158638272,-500.0,0.00013275,2]
[408705197,1774158638281,-500.0,0.00013275,2]
[408705198,1774158638291,-500.0,0.00013275,2]
[408705199,1774158638300,-500.0,0.00013275,2]
[408705200,1774158638309,-500.0,0.00013275,2]
[408705201,1774158638318,-500.0,0.00013275,2]
[408705202,1774158638327,-500.0,0.00013275,2]
[408705203,1774158638336,-500.0,0.00013275,2]
[408705204,1774158638346,-500.0,0.00013275,2]
[408705205,1774158638355,-500.0,0.00013275,2]
[408705207,1774158638364,-500.0,0.00013275,2]
[408705209,1774158638373,-500.0,0.00013275,2]
[408705211,1774158638382,-500.0,0.00013275,2]
[408705213,1774158638391,-500.0,0.00013275,2]
[408705215,1774158638400,-500.0,0.00013275,2]
[408705217,1774158638410,-500.0,0.00013275,2]
[408705220,1774158638419,-500.0,0.00013275,2]
[408705222,1774158638427,-500.0,0.00013275,2]
[408705224,1774158638437,-500.0,0.00013275,2]
[408705227,1774158638446,-500.0,0.00013275,2]
[408705229,1774158638455,-500.0,0.00013275,2]
[408705231,1774158638466,-500.0,0.00013275,2]
[408705233,1774158638475,-502.83488939,0.00013275,2]
[408705235,1774158638484,-500.0,0.00013275,2]
[408705237,1774158638494,-500.0,0.00013275,2]
[408705239,1774158638503,-500.0,0.00013275,2]
[408705241,1774158638513,-500.0,0.00013275,2]
[408705243,1774158638522,-500.0,0.00013275,2]
[408705245,1774158638531,-500.0,0.00013275,2]
[408705247,1774158638541,-500.0,0.00013275,2]
[408705249,1774158638550,-500.0,0.00013275,2]
[408705251,1774158638565,-500.0,0.00013275,2]
[408705253,1774158638578,-42724.81697222,0.00013276,2]
[408705256,1774158638594,-1970.42852225,0.00013276,2]
[408705273,1774158640580,-1919.76682408,0.00013276,2]
[408705274,1774158640596,-8992.49262014,0.00013276,2]
[408705275,1774158640748,-506.37642362,0.00013276,2]
[408705276,1774158640805,-254.12738969,0.00013276,2]
[408705283,1774158643291,-539.44516753,0.00013276,2]
[408705284,1774158643499,-311.53559548,0.00013276,2]
[408705298,1774158646364,-572.01969778,0.00013276,2]
[408705299,1774158646376,-1893.12,0.00013276,2]
[408705300,1774158646387,-260.33401553,0.00013276,2]
[408705301,1774158646397,-122967.74104604,0.00013276,2]
[408705310,1774158646571,-281.680004,0.00013276,2]
[408705349,1774159121910,3150.13103796,0.00012555,2]
[408705350,1774159121932,10000.01,0.00012555,2]
[408705351,1774159121953,5271.35896204,0.00012555,2]
[408705352,1774159148564,4728.65103796,0.00012555,2]
[408705353,1774159148588,3082.41896204,0.00012555,2]
[408705354,1774159294248,10000.01,0.00012464,2]
[408705355,1774159294272,10000.01,0.00012464,2]
[408705356,1774159294301,3391.35,0.00012464,2]
[408705357,1774159363476,150.0,0.00012445,2]
[408705358,1774159392480,1309.16,6.211e-05,2]
[408705359,1774159392670,1309.16,6.538e-05,2]
[408705360,1774159392861,1309.16,6.864e-05,2]
[408705361,1774159393055,1309.16,7.191e-05,2]
[408705362,1774159393282,1222.02,7.518e-05,2]
[408705363,1774159393307,87.14,7.518e-05,2]
[408705364,1774159393470,1309.16,7.845e-05,2]
[408705365,1774159393653,1309.16,8.172e-05,2]
[408705366,1774159393843,1309.16,8.499e-05,2]
[408705367,1774159394131,1309.16,8.826e-05,2]
[408705368,1774159394222,1309.16,9.153e-05,2]
[408705369,1774159394411,1309.16,9.479e-05,2]
[408705370,1774159394805,1309.16,9.806e-05,2]
[408705371,1774159394837,748.75,0.00010133,2]
[408705372,1774159394860,560.41,0.00010133,2]
[408705373,1774159394959,1309.16,0.0001046,2]
[408705374,1774159395149,1309.16,0.00010787,2]
[408705375,1774159395548,1309.16,0.00011114,2]
[408705376,1774159395745,1309.16,0.00011441,2]
[408705377,1774159395955,1309.16,0.00011768,2]
[408705378,1774159396144,1309.16,0.00012094,2]
[408705379,1774159396346,1309.16,0.00012421,2]
[408705380,1774159447687,3267.094528,7.945e-05,2]
[408705381,1774159622345,500.0,0.00012555,2]
[408705382,1774159638133,-167.0,0.00012588,2]
[408705383,1774159638154,-167.0,0.00012588,2]
[408705384,1774159638173,-155.0,0.00012588,2]
[408705385,1774159638193,-155.0,0.00012588,2]
[408705386,1774159638212,-155.0,0.00012588,2]
[408705387,1774159638232,-155.0,0.00012588,2]
[408705388,1774159638263,-155.0,0.00012588,2]
[408705389,1774159638282,-162.0,0.00012588,2]
[408705390,1774159638303,-167.0,0.0001263,3]
[408705391,1774159638324,-300.0,0.00012696,2]
[408705392,1774159638343,-300.0,0.00012696,2]
[408705393,1774159638363,-1600.0,0.00012697,2]
[408705394,1774159638383,-900.0,0.000128,4]
[408705395,1774159638402,-166.94,0.00012838,2]
[408705396,1774159638420,-1886.19,0.00012919,2]
[408705397,1774159638440,-1977.50627183,0.00013023,2]
[408705398,1774159684244,157.0,0.00012588,2]
[408705399,1774159684485,157.0,0.00012588,2]
[408705400,1774159684722,157.0,0.00012588,2]
[408705401,1774159687561,162.0,0.00012588,2]
[408705402,1774159719627,5000.01,0.00012326,2]
[408705403,1774159719653,5001.21,0.00012326,2]
[408705404,1774159744893,159.0,0.00012588,2]
[408705405,1774159745136,159.0,0.00012588,2]
[408705406,1774159745376,159.0,0.00012588,2]
[408705407,1774159747773,172.0,0.00012588,2]
[408705408,1774159805367,164.0,0.00012588,2]
[408705409,1774159805602,164.0,0.00012588,2]
[408705410,1774159812266,160.0,0.00012588,2]
[408705411,1774159812533,160.0,0.00012588,2]
[408705412,1774159832252,-200.0,0.000126,2]
[408705413,1774159832262,-286.0,0.000126,2]
[408705414,1774159832271,-164.0,0.0001263,3]
[408705415,1774159832281,-400.0,0.000128,4]
[408705416,1774159832291,-1900.0,0.000129,4]
[408705417,1774159832300,-800.0,0.000129,4]
[408705418,1774159832310,-3291.89447115,0.000129,2]
[408705419,1774159832320,-182.0,0.00012975,2]
[408705420,1774159832330,-1200.0,0.00012975,2]
[408705421,1774159832340,-300.0,0.00012975,2]
[408705422,1774159832349,-300.0,0.00012975,2]
[408705423,1774159832358,-1011.85287969,0.00012976,2]
[408705424,1774159832368,-1538.08167536,0.00012976,2]
[408705425,1774159832380,-685.52016692,0.00012976,2]
[408705426,1774159832390,-4391.81706609,0.00012976,2]
[408705427,1774159832399,-1200.44006963,0.00013023,2]
[408705428,1774159832408,-4525.0372,0.00013041,2]
[408705429,1774159832418,-162.99948158,0.00013066,2]
[408705431,1774159832427,-500.0,0.00013068,2]
[408705432,1774159832436,-500.0,0.00013073,2]
[408705433,1774159832447,-500.0,0.00013073,2]
[408705434,1774159832458,-150.0,0.00013074,2]
[408705435,1774159832469,-363.59094445,0.00013075,2]
[408705436,1774159832479,-500.0,0.00013075,2]
[408705438,1774159832488,-500.0,0.00013075,2]
[408705439,1774159832498,-500.0,0.00013075,2]
[408705440,1774159832508,-500.0,0.00013075,2]
[408705441,1774159832517,-500.0,0.00013075,2]
[408705443,1774159832527,-500.0,0.00013075,2]
[408705444,1774159832537,-500.0,0.00013075,2]
[408705445,1774159832553,-500.0,0.00013075,2]
[408705446,1774159832569,-500.0,0.00013075,2]
[408705447,1774159832578,-500.0,0.00013075,2]
[408705448,1774159832588,-500.0,0.00013075,2]
[408705449,1774159832598,-500.0,0.00013075,2]
[408705450,1774159832608,-500.0,0.00013075,2]
[408705451,1774159832618,-500.0,0.00013075,2]
[408705452,1774159832631,-500.0,0.00013075,2]
[408705453,1774159832640,-500.0,0.00013075,2]
[408705454,1774159832651,-500.0,0.00013075,2]
[408705455,1774159832660,-500.0,0.00013075,2]
[408705456,1774159832671,-500.0,0.00013075,2]
[408705457,1774159832681,-500.0,0.00013075,2]
[408705458,1774159832691,-500.0,0.00013075,2]
[408705459,1774159832701,-500.0,0.00013075,2]
[408705460,1774159832711,-500.0,0.00013075,2]
[408705461,1774159832720,-500.0,0.00013075,2]
[408705462,1774159832730,-500.0,0.00013075,2]
[408705463,1774159832739,-500.0,0.00013075,2]
[408705464,1774159832750,-500.0,0.00013075,2]
[408705465,1774159832759,-500.0,0.00013075,2]
[408705466,1774159832769,-500.0,0.00013075,2]
[408705467,1774159832779,-500.0,0.00013075,2]
[408705468,1774159832788,-500.0,0.00013075,2]
[408705469,1774159832798,-500.0,0.00013075,2]
[408705470,1774159832807,-500.0,0.00013075,2]
[408705471,1774159832818,-500.0,0.00013075,2]
[408705472,1774159832827,-567.84418979,0.00013075,2]
[408705473,1774159832837,-500.0,0.00013075,2]
[408705474,1774159832846,-500.0,0.00013075,2]
[408705475,1774159832856,-500.0,0.00013075,2]
[408705476,1774159832867,-500.0,0.00013075,2]
[408705477,1774159832876,-500.0,0.00013075,2]
[408705478,1774159832887,-500.0,0.00013075,2]
[408705479,1774159832897,-500.0,0.00013075,2]
[408705480,1774159832916,-500.0,0.00013075,2]
[408705481,1774159832930,-500.0,0.00013075,2]
[408705482,1774159832939,-500.0,0.00013075,2]
[408705483,1774159832949,-500.0,0.00013075,2]
[408705484,1774159832959,-500.0,0.00013075,2]
[408705485,1774159832970,-500.0,0.00013075,2]
[408705486,1774159832980,-500.0,0.00013075,2]
[408705487,1774159832991,-500.0,0.00013075,2]
[408705488,1774159833000,-500.0,0.00013075,2]
[408705489,1774159833010,-500.0,0.00013075,2]
[408705490,1774159833020,-500.0,0.00013075,2]
[408705491,1774159833030,-500.0,0.00013075,2]
[408705492,1774159833039,-500.0,0.00013075,2]
[408705493,1774159833049,-500.0,0.00013075,2]
[408705494,1774159833059,-500.0,0.00013075,2]
[408705495,1774159833069,-500.0,0.00013075,2]
[408705496,1774159833079,-506.78441898,0.00013075,2]
[408705497,1774159833089,-500.0,0.00013075,2]
[408705498,1774159833098,-500.0,0.00013075,2]
[408705499,1774159833112,-500.0,0.00013075,2]
[408705500,1774159833121,-500.0,0.00013075,2]
[408705501,1774159833131,-500.0,0.00013075,2]
[408705502,1774159833141,-500.0,0.00013075,2]
[408705503,1774159833151,-500.0,0.00013075,2]
[408705504,1774159833161,-500.0,0.00013075,2]
[408705505,1774159833171,-500.0,0.00013075,2]
[408705506,1774159833181,-500.0,0.00013075,2]
[408705507,1774159833191,-450.67844189,0.00013075,2]
[408705508,1774159833200,-215653.96991697,0.00013076,2]
[408705509,1774159833215,-2035.56006061,0.00013076,2]
[408705510,1774159833226,-6817.85246556,0.00013076,2]
[408705511,1774159833238,-1254.41808677,0.00013076,2]
[408705512,1774159833250,-1611.15630401,0.00013076,2]
[408705513,1774159833283,-5000.00113981,0.00013076,2]
[408705517,1774159838322,-668.27750435,0.00013076,2]
[408705519,1774159838383,-500.0,0.00013076,2]
[408705520,1774159838395,-1552.79532336,0.00013076,2]
[408705521,1774159838813,-952.07069596,0.00013076,2]
[408705522,1774159838824,-2030.87155785,0.00013076,2]
[408705523,1774159838836,-491.87020873,0.00013076,2]
[408705524,1774159838847,-2669.38256062,0.00013076,2]
[408705526,1774159840543,-402564.3432754,0.00013076,2]
[408705527,1774159840552,-1500000.0,0.00013076,2]
[408705528,1774159840562,-200.0,0.00013076,2]
[408705529,1774159840572,-200.0,0.00013076,2]
[408705530,1774159840582,-200.0,0.00013076,2]
[408705531,1774159840592,-200.0,0.00013076,2]
[408705532,1774159840602,-200.0,0.00013076,2]
[408705533,1774159840612,-200.0,0.00013076,2]
[408705534,1774159840622,-200.0,0.00013076,2]
[408705535,1774159840632,-200.0,0.00013076,2]
[408705536,1774159840642,-200.0,0.00013076,2]
[408705537,1774159840652,-200.0,0.00013076,2]
[408705538,1774159840662,-500.0,0.00013123,2]
[408705539,1774159840672,-3057.5938,0.00013176,2]
[408705540,1774159840681,-1000.0,0.00013176,2]
[408705541,1774159840690,-22604.9768,0.00013176,2]
[408705542,1774159840700,-6763.5247,0.00013176,2]
[408705543,1774159840710,-2500.0,0.00013176,2]
[408705544,1774159840719,-500.0,0.00013178,2]
[408705545,1774159840729,-415.0,0.00013204,2]
[408705546,1774159840739,-18240.8578472,0.00013257,2]
[408705547,1774159840748,-8153.2720106,0.00013257,2]
[408705548,1774159840758,-200.0,0.00013268,2]
[408705552,1774159840997,-151.0,0.00013268,2]
[408705553,1774159841007,-151.0,0.00013268,2]
[408705554,1774159841018,-151.0,0.00013268,2]
[408705555,1774159841029,-151.0,0.00013268,2]
[408705556,1774159841039,-151.0,0.00013268,2]
[408705557,1774159841048,-151.0,0.00013268,2]
[408705558,1774159841058,-151.0,0.00013268,2]
[408705559,1774159841068,-151.0,0.00013268,2]
[408705560,1774159841078,-151.0,0.00013268,2]
[408705561,1774159841087,-151.0,0.00013268,2]
[408705562,1774159841097,-151.0,0.00013268,2]
[408705563,1774159841106,-151.0,0.00013268,2]
[408705564,1774159841116,-151.0,0.00013268,2]
[408705565,1774159841125,-151.0,0.00013268,2]
[408705566,1774159841135,-151.0,0.00013268,2]
[408705567,1774159841145,-151.0,0.00013268,2]
[408705568,1774159841154,-151.0,0.00013268,2]
[408705569,1774159841163,-151.0,0.00013268,2]
[408705570,1774159841172,-151.0,0.00013268,2]
[408705571,1774159841181,-151.0,0.00013268,2]
[408705572,1774159841191,-151.0,0.00013268,2]
[408705573,1774159841201,-151.0,0.00013268,2]
[408705574,1774159841209,-151.0,0.00013268,2]
[408705575,1774159841219,-151.0,0.00013268,2]
[408705576,1774159841229,-151.0,0.00013268,2]
[408705577,1774159841239,-151.0,0.00013268,2]
[408705578,1774159841248,-151.0,0.00013268,2]
[408705579,1774159841258,-151.0,0.00013268,2]
[408705580,1774159841268,-500.0,0.00013273,2]
[408705581,1774159841278,-500.22141638,0.00013273,2]
[408705582,1774159841288,-500.0,0.00013273,2]
[408705583,1774159841297,-501.94992362,0.00013273,2]
[408705584,1774159841306,-151.0,0.00013273,2]
[408705585,1774159841316,-155.0,0.00013275,2]
[408705586,1774159841326,-213.91104202,0.00013275,2]
[408705587,1774159841336,-500.0,0.00013275,2]
[408705588,1774159841345,-500.0,0.00013275,2]
[408705589,1774159841355,-500.0,0.00013275,2]
[408705590,1774159841365,-392.14287895,0.00013275,2]
[408705591,1774159841375,-500.0,0.00013275,2]
[408705592,1774159841385,-161.61438637,0.00013275,2]
[408705593,1774159841395,-500.0,0.00013275,2]
[408705594,1774159841405,-500.0,0.00013275,2]
[408705595,1774159841415,-443.11534599,0.00013275,2]
[408705596,1774159841424,-216.19444949,0.00013275,2]
[408705597,1774159841434,-500.0,0.00013275,2]
[408705598,1774159841443,-924.0,0.00013276,2]
[408705599,1774159841453,-570874.7141412,0.00013276,2]
[408705600,1774159841462,-151.0,0.00013276,2]
[408705601,1774159841471,-151.0,0.00013276,2]
[408705602,1774159841481,-151.0,0.00013276,2]
[408705603,1774159841492,-151.0,0.00013276,2]
[408705604,1774159841502,-772.146072,0.00013276,2]
[408705605,1774159841512,-183.692267,0.00013276,2]
[408705606,1774159841521,-772.146072,0.00013276,2]
[408705607,1774159841530,-183.692267,0.00013276,2]
[408705608,1774159841540,-772.146072,0.00013276,2]
[408705609,1774159841550,-772.146072,0.00013276,2]
[408705610,1774159841560,-183.692267,0.00013276,2]
[408705611,1774159841569,-183.692267,0.00013276,2]
[408705612,1774159841579,-2223.60184221,0.00013301,2]
[408705613,1774159841589,-3177.9463414,0.00013343,2]
[408705614,1774159841598,-271.709954,0.00013345,2]
[408705615,1774159841608,-166.94,0.00013368,2]
[408705616,1774159841619,-161.01,0.00013375,2]
[408705617,1774159841628,-1011.85287966,0.00013394,2]
[408705618,1774159841638,-843.80340637,0.00013408,2]
[408705619,1774159841648,-360.0,0.00013455,2]
[408705620,1774159841657,-151.0,0.00013473,2]
[408705621,1774159841667,-237.6846,0.000135,2]
[408705622,1774159841678,-500.0,0.00013621,2]
[408705623,1774159841687,-500.0,0.00013621,2]
[408705624,1774159841697,-2223.60184221,0.00013626,2]
[408705625,1774159841707,-882.027713,0.00013659,2]
[408705626,1774159841716,-3177.9463414,0.00013662,2]
[408705627,1774159841726,-500.0,0.00013673,2]
[408705628,1774159841736,-574.62700701,0.00013673,2]
[408705629,1774159841745,-500.61388542,0.00013673,2]
[408705630,1774159841755,-151.0,0.00013673,2]
[408705631,1774159841766,-28398.1035186,0.00013676,2]
[408705632,1774159841776,-200.0,0.00013676,2]
[408705633,1774159841787,-273.65039375,0.00013698,2]
[408705634,1774159841798,-414.39,0.00013699,2]
[408705635,1774159841808,-200.0,0.00013699,2]
[408705636,1774159841819,-151.0,0.00013699,2]
[408705637,1774159841829,-458.17,0.00013699,2]
[408705638,1774159841839,-500.0,0.00013699,2]
[408705639,1774159841848,-834.34,0.000137,2]
[408705640,1774159841858,-212.72,0.000137,2]
[408705641,1774159841867,-1264.97,0.000137,2]
[408705642,1774159841877,-1311.24,0.000137,2]
[408705643,1774159841886,-751.53,0.000137,2]
[408705644,1774159841896,-227.84,0.0001373,2]
[408705645,1774159841906,-1011.85287966,0.00013811,2]
[408705646,1774159841920,-200.0,0.00013813,2]
[408705647,1774159841930,-209.65985904,0.00013816,2]
[408705648,1774159841939,-250.0,0.00013836,2]
[408705649,1774159841951,-500.0,0.00013846,2]
[408705650,1774159841960,-303.96232386,0.00013846,2]
[408705651,1774159841970,-300.0,0.00013846,2]
[408705652,1774159841979,-300.0,0.00013846,2]
[408705653,1774159841991,-3737.463465,0.00013846,2]
[408705654,1774159842001,-445.94643724,0.0001386,2]
[408705655,1774159842010,-5369.28,0.00013887,2]
[408705656,1774159842020,-1224.385715,0.00013893,2]
[408705657,1774159842030,-166.94,0.00013898,2]
[408705658,1774159842039,-265.605188,0.00013926,2]
[408705659,1774159842049,-265.605188,0.00013926,2]
[408705660,1774159842058,-265.605188,0.00013926,2]
[408705661,1774159842068,-265.605188,0.00013926,2]
[408705662,1774159842077,-9572.91,0.00013926,2]
[408705663,1774159842087,-1232.0,0.00013928,5]
[408705664,1774159842096,-151.0,0.00013934,2]
[408705665,1774159842105,-2223.60184221,0.00013951,2]
[408705666,1774159842115,-200.0,0.00013951,2]
[408705667,1774159842125,-250.0,0.00013967,2]
[408705668,1774159842135,-3177.9463414,0.00013982,2]
[408705669,1774159842145,-289.99296037,0.0001399,2]
[408705670,1774159842155,-523.0,0.00014,2]
[408705671,1774159842165,-2000.0,0.00014022,2]
[408705672,1774159842175,-200.0,0.0001408,2]
[408705673,1774159842188,-250.0,0.0001408,2]
[408705674,1774159842198,-800.0,0.00014082,2]
[408705675,1774159842209,-200.0,0.0001409,2]
[408705676,1774159842218,-255.0,0.00014185,2]
[408705677,1774159842228,-151.0,0.00014187,2]
[408705678,1774159842238,-151.0,0.00014187,2]
[408705679,1774159842247,-244.067469,0.00014214,7]
[408705680,1774159842257,-267.933683,0.00014214,7]
[408705681,1774159842270,-379.18468401,0.00014221,2]
[408705682,1774159842279,-772.146072,0.00014229,2]
[408705683,1774159842289,-772.146072,0.00014229,2]
[408705684,1774159842299,-772.146072,0.00014229,2]
[408705685,1774159842308,-772.146072,0.00014229,2]
[408705686,1774159842318,-1011.85287966,0.00014229,2]
[408705687,1774159842327,-1000.0,0.00014247,2]
[408705688,1774159842337,-151.0,0.00014265,2]
[408705689,1774159842346,-1680.0,0.00014273,2]
[408705690,1774159842356,-2223.60184221,0.00014276,2]
[408705691,1774159842366,-1600.0,0.00014285,2]
[408705692,1774159842375,-3177.9463414,0.00014302,2]
[408705693,1774159842388,-151.0,0.00014356,2]
[408705694,1774159842399,-183.692267,0.00014356,2]
[408705695,1774159842414,-183.692267,0.00014356,2]
[408705696,1774159842426,-183.692267,0.00014356,2]
[408705697,1774159842438,-183.692267,0.00014356,2]
[408705698,1774159842449,-700.0,0.00014356,2]
[408705699,1774159842461,-700.0,0.00014356,2]
[408705700,1774159842474,-156.45,0.00014365,2]
[408705701,1774159842488,-458.17,0.00014384,2]
[408705702,1774159842500,-186.636452,0.00014395,2]
[408705703,1774159842514,-2403.0,0.000144,2]
[408705704,1774159842527,-1568.0,0.000144,2]
[408705705,1774159842540,-166.94,0.00014427,2]
[408705706,1774159842553,-500.0,0.00014467,2]
[408705707,1774159842564,-1001.35,0.00014504,2]
[408705708,1774159842575,-8380.31,0.00014504,2]
[408705709,1774159842586,-215.0,0.00014559,2]
[408705710,1774159842597,-2223.60184221,0.000146,2]
[408705711,1774159842609,-285.035596,0.00014602,7]
[408705712,1774159842622,-168.166183,0.00014602,7]
[408705713,1774159842633,-155.0,0.00014603,2]
[408705714,1774159842645,-3177.9463414,0.00014621,2]
[408705715,1774159842658,-1011.85287966,0.00014647,2]
[408705716,1774159842670,-215.0,0.00014706,2]
[408705717,1774159842682,-500.0,0.00014711,2]
[408705718,1774159842694,-390.12270077,0.00014711,2]
[408705719,1774159842707,-500.0,0.00014711,2]
[408705720,1774159842718,-500.0,0.00014711,2]
[408705721,1774159842730,-500.44177829,0.00014711,2]
[408705722,1774159842743,-215.0,0.00014733,2]
[408705723,1774159842755,-215.0,0.00014752,2]
[408705724,1774159842768,-215.0,0.00014768,2]
[408705725,1774159842779,-573.03260881,0.00014795,2]
[408705726,1774159842792,-215.0,0.00014881,2]
[408705727,1774159842803,-168.17,0.00014888,2]
[408705728,1774159842814,-168.17,0.00014888,2]
[408705729,1774159842826,-151.3301257,0.00014897,2]
[408705730,1774159842838,-73983.85660975,0.000149,2]
[408705731,1774159842851,-158.001456,0.000149,2]
[408705732,1774159842862,-151.0,0.000149,2]
[408705733,1774159842873,-151.0,0.000149,2]
[408705734,1774159842885,-265.605188,0.000149,2]
[408705735,1774159842897,-265.605188,0.000149,2]
[408705736,1774159842910,-265.605188,0.000149,2]
[408705737,1774159842921,-265.605188,0.000149,2]
[408705738,1774159842933,-242.382022,0.000149,2]
[408705739,1774159842947,-151.0,0.000149,2]
[408705740,1774159842960,-151.0,0.000149,2]
[408705741,1774159842974,-772.146072,0.000149,2]
[408705742,1774159842985,-183.692267,0.000149,2]
[408705743,1774159842995,-772.146072,0.000149,2]
[408705744,1774159843007,-183.692267,0.000149,2]
[408705745,1774159843019,-772.146072,0.000149,2]
[408705746,1774159843031,-772.146072,0.000149,2]
[408705747,1774159843043,-183.692267,0.000149,2]
[408705748,1774159843056,-183.692267,0.000149,2]
[408705749,1774159843068,-500.74920901,0.0001492,2]
[408705750,1774159843080,-500.70382414,0.0001492,2]
[408705751,1774159843091,-500.0,0.0001492,2]
[408705752,1774159843103,-500.4848322,0.0001492,2]
[408705753,1774159843114,-500.0,0.0001492,2]
[408705754,1774159843125,-500.0,0.0001492,2]
[408705755,1774159843137,-500.0,0.0001492,2]
[408705756,1774159843148,-500.55967201,0.0001492,2]
[408705757,1774159843158,-500.0,0.0001492,2]
[408705758,1774159843169,-874.0,0.00014923,2]
[408705759,1774159843180,-2223.60184221,0.00014925,2]
[408705760,1774159843190,-3177.9463414,0.00014941,2]
[408705761,1774159843201,-215.0,0.00014953,2]
[408705762,1774159843212,-166.94,0.00014957,2]
[408705763,1774159843224,-215.0,0.00014965,2]
[408705764,1774159843235,-215.0,0.00014967,2]
[408705765,1774159843246,-164.0,0.00014973,3]
[408705766,1774159843257,-160.0,0.00014973,3]
[408705767,1774159843269,-1042.04499952,0.00015,7]
[408705768,1774159843280,-1000.0,0.00015015,2]
[408705769,1774159843291,-215.0,0.00015035,2]
[408705770,1774159843302,-1011.85287966,0.00015065,2]
[408705771,1774159843312,-215.0,0.00015067,2]
[408705772,1774159843323,-203.0,0.00015068,2]
[408705773,1774159843334,-537.35,0.00015068,2]
[408705774,1774159843344,-458.17,0.00015068,2]
[408705775,1774159843355,-1261.0,0.00015107,5]
[408705776,1774159843366,-1208.0,0.00015107,5]
[408705777,1774159843376,-204.451999,0.00015205,2]
[408705778,1774159843387,-700.0,0.00015234,2]
[408705779,1774159843399,-2223.60184221,0.0001525,2]
[408705780,1774159843409,-655.4067427,0.00015259,2]
[408705781,1774159843420,-1000.0,0.00015259,2]
[408705782,1774159843431,-500.67270798,0.00015259,2]
[408705783,1774159843442,-3177.9463414,0.00015261,2]
[408705784,1774159843453,-161.0,0.00015265,2]
[408705785,1774159843463,-874.0,0.00015268,2]
[408705786,1774159843474,-160.0,0.00015291,2]
[408705787,1774159843484,-979.16666667,0.00015291,2]
[408705788,1774159843495,-999.99,0.0001531,2]
[408705789,1774159843505,-299.99,0.0001531,2]
[408705790,1774159843516,-150.99,0.0001531,2]
[408705791,1774159843527,-353.25,0.0001531,2]
[408705792,1774159843537,-168.0,0.00015315,2]
[408705793,1774159843548,-168.0,0.00015318,2]
[408705794,1774159843559,-1215.0,0.0001533,2]
[408705795,1774159843570,-924.0,0.0001533,2]
[408705796,1774159843580,-2247.0,0.0001536,2]
[408705797,1774159843592,-1568.0,0.0001536,2]
[408705798,1774159843603,-874.0,0.00015362,2]
[408705799,1774159843613,-227.84,0.00015373,2]
[408705800,1774159843624,-438.88,0.00015377,2]